[Event "Championnat du monde jeunes U10"]
[Date "2024.11.17"]
[White "Anand, Tsogtbileg"]
[Black "Babeikin, Kiryl"]
[WhiteElo "1974"]
[BlackElo "1721"]
[Round "3.11"]
[Result "1-0"]
[TimeControl "5400+30"]

1. d4 {[%clk 1:30:30]} 1... d5 {[%clk 1:30:53]} 2. c4 {[%clk 1:30:30]} 2... e6
{[%clk 1:31:14]} 3. g3 {[%clk 1:30:30]} 3... Nf6 {[%clk 1:31:34]} 4. Bg2 {[%clk
1:30:30]} 4... Be7 {[%clk 1:31:49]} 5. Nf3 {[%clk 1:30:30]} 5... O-O {[%clk
1:32:06]} 6. O-O {[%clk 1:30:30]} 6... dxc4 {[%clk 1:32:26]} 7. Ne5 {[%clk
1:30:30]} 7... Nc6 {[%clk 1:32:36]} 8. Bxc6 {[%clk 1:30:19]} 8... bxc6 {[%clk
1:33:00]} 9. Nxc6 {[%clk 1:30:34]} 9... Qe8 {[%clk 1:33:18]} 10. Nxe7+ {[%clk
1:30:21]} 10... Qxe7 {[%clk 1:33:40]} 11. Qa4 {[%clk 1:30:30]} 11... e5 {[%clk
1:33:17]} 12. dxe5 {[%clk 1:29:41]} 12... Qxe5 {[%clk 1:33:35]} 13. Qxc4 {[%clk
1:29:20]} 13... Be6 {[%clk 1:31:33]} 14. Qc2 {[%clk 1:27:43]} 14... Bf5 {[%clk
1:31:07]} 15. Qd2 {[%clk 1:26:26]} 15... Bxb1 {[%clk 1:22:06]} 16. Rxb1 {[%clk
1:26:34]} 16... Rfe8 {[%clk 1:22:32]} 17. Re1 {[%clk 1:23:09]} 17... Qf5 {[%clk
1:22:44]} 18. Ra1 {[%clk 1:22:14]} 18... Qh3 {[%clk 1:20:12]} 19. f3 {[%clk
1:20:17]} 19... Rad8 {[%clk 1:15:40]} 20. Qc2 {[%clk 1:17:56]} 20... Nh5 {[%clk
1:02:17]} 21. g4 {[%clk 1:15:50]} 21... Qh4 {[%clk 0:46:57]} 22. Bd2 {[%clk
1:09:43]} 22... Nf6 {[%clk 0:46:29]} 23. Bf4 {[%clk 1:07:01]} 23... h5 {[%clk
0:38:38]} 24. Bg3 {[%clk 0:50:18]} 24... Qh3 {[%clk 0:37:18]} 25. g5 {[%clk
0:49:52]} 25... Nd5 {[%clk 0:31:20]} 26. e4 {[%clk 0:49:06]} 26... Nb4 {[%clk
0:30:06]} 27. Qe2 {[%clk 0:46:00]} 27... h4 {[%clk 0:26:04]} 28. Bxc7 {[%clk
0:39:35]} 28... Rd7 {[%clk 0:26:08]} 29. Rec1 {[%clk 0:32:51]} 29... Nd5 {[%clk
0:10:32]} 30. Ba5 {[%clk 0:31:15]} 30... Nf4 {[%clk 0:10:57]} 31. Qf1 {[%clk
0:30:48]} 31... Qe6 {[%clk 0:11:21]} 32. Kh1 {[%clk 0:30:27]} 32... Qe5 {[%clk
0:10:27]} 33. Bc3 {[%clk 0:29:36]} 33... Qxg5 {[%clk 0:10:07]} 34. Qg1 {[%clk
0:28:43]} 34... Qh6 {[%clk 0:10:17]} 35. Qg4 {[%clk 0:28:29]} 35... Rd6 {[%clk
0:09:43]} 36. Bxg7 {[%clk 0:27:54]} 36... Qxg7 {[%clk 0:09:52]} 37. Qxf4 {[%clk
0:28:16]} 37... Rg6 {[%clk 0:10:05]} 38. Rg1 {[%clk 0:26:11]} 38... Ree6 {[%clk
0:10:16]} 39. b3 {[%clk 0:22:04]} 39... Qc3 {[%clk 0:08:47]} 40. Rac1 {[%clk
0:21:09]} 40... Qd3 {[%clk 0:08:39]} 41. Rgd1 {[%clk 0:17:33]} 41... Qa6 {[%clk
0:06:21]} 42. Qxh4 {[%clk 0:17:17]} 42... Rh6 {[%clk 0:05:19]} 43. Rg1+ {[%clk
0:15:47]} 43... Kh7 {[%clk 0:05:29]} 44. Qf4 {[%clk 0:12:04]} 44... Ref6 {[%clk
0:05:05]} 45. Qe3 Rh5 {[%clk 0:02:27]} 46. e5 {[%clk 0:06:57]} 46... Rff5 {[%clk
0:02:09]} 47. e6 {[%clk 0:05:30]} 47... Qd6 {[%clk 0:01:13]} 48. Rc2 {[%clk
0:03:51]} 48... fxe6 {[%clk 0:00:55]} 49. Qxa7+ {[%clk 0:04:12]} 49... Kh6
{[%clk 0:01:11]} 50. Qg7# {[%clk 0:04:35]} 1-0

[Variant "Standard"]
[Site "Europe Echecs"]

[Event "Championnat du monde jeunes U10"]
[Date "2024.11.17"]
[White "Vardanyan, Armen Art."]
[Black "Zhauynbay, Alimzhan"]
[WhiteElo "1735"]
[BlackElo "1953"]
[Round "3.12"]
[Result "0-1"]
[TimeControl "5400+30"]

1. d4 {[%clk 1:30:58]} 1... Nf6 {[%clk 1:30:38]} 2. c4 {[%clk 1:31:21]} 2... g6
{[%clk 1:30:51]} 3. Nc3 {[%clk 1:31:34]} 3... Bg7 {[%clk 1:31:07]} 4. e4 {[%clk
1:32:03]} 4... d6 {[%clk 1:31:19]} 5. Nf3 {[%clk 1:32:13]} 5... O-O {[%clk
1:31:15]} 6. Be2 {[%clk 1:32:11]} 6... e5 {[%clk 1:31:06]} 7. O-O {[%clk
1:32:30]} 7... Nc6 {[%clk 1:29:18]} 8. d5 {[%clk 1:32:47]} 8... Ne7 {[%clk
1:29:22]} 9. Ne1 {[%clk 1:32:50]} 9... a5 {[%clk 1:24:37]} 10. a3 {[%clk
1:17:32]} 10... a4 {[%clk 1:17:21]} 11. f3 {[%clk 1:10:52]} 11... Bd7 {[%clk
1:12:37]} 12. Be3 {[%clk 1:07:08]} 12... b6 {[%clk 1:10:10]} 13. Qd2 {[%clk
1:02:34]} 13... Nh5 {[%clk 1:03:32]} 14. g4 {[%clk 1:01:40]} 14... Nf4 {[%clk
1:03:12]} 15. Bxf4 {[%clk 0:59:19]} 15... exf4 {[%clk 1:03:39]} 16. Qxf4 {[%clk
0:59:02]} 16... f5 {[%clk 1:03:20]} 17. Qe3 {[%clk 0:57:31]} 17... fxe4 {[%clk
0:47:36]} 18. fxe4 {[%clk 0:49:25]} 18... Rxf1+ {[%clk 0:45:56]} 19. Kxf1 {[%clk
0:45:55]} 19... h6 {[%clk 0:36:47]} 20. h3 {[%clk 0:43:20]} 20... g5 {[%clk
0:36:51]} 21. Kg1 {[%clk 0:40:30]} 21... Ng6 {[%clk 0:36:57]} 22. Ng2 {[%clk
0:40:23]} 22... Be5 {[%clk 0:35:13]} 23. Bd3 {[%clk 0:35:58]} 23... Qf6 {[%clk
0:34:32]} 24. Rf1 {[%clk 0:34:25]} 24... Qg7 {[%clk 0:34:48]} 25. Ne2 {[%clk
0:29:22]} 25... Bxb2 {[%clk 0:34:02]} 26. Bb1 {[%clk 0:25:55]} 26... Ne5 {[%clk
0:31:08]} 27. Ba2 {[%clk 0:24:13]} 27... Rf8 {[%clk 0:29:56]} 28. Rxf8+ {[%clk
0:20:49]} 28... Qxf8 {[%clk 0:30:17]} 29. Ne1 {[%clk 0:14:35]} 29... Qf6 {[%clk
0:27:23]} 30. Kg2 {[%clk 0:14:34]} 30... Bc8 {[%clk 0:24:08]} 31. c5 {[%clk
0:07:20]} 31... bxc5 {[%clk 0:22:56]} 32. Nd3 {[%clk 0:07:21]} 32... Ng6 {[%clk
0:21:45]} 33. e5 {[%clk 0:04:23]} 33... Bxe5 {[%clk 0:21:30]} 34. Nxe5 {[%clk
0:04:16]} 34... Qxe5 {[%clk 0:20:14]} 35. Qd3 {[%clk 0:03:20]} 35... Nh4+ {[%clk
0:18:55]} 36. Kg1 {[%clk 0:03:25]} 36... Qa1+ {[%clk 0:14:57]} 37. Bb1 Qg7
{[%clk 0:14:34]} 38. Qe4 {[%clk 0:03:20]} 38... Bd7 {[%clk 0:14:35]} 39. Bc2
{[%clk 0:02:53]} 39... Qf7 {[%clk 0:13:26]} 40. Ng3 {[%clk 0:02:43]} 40... Qg7
{[%clk 0:11:52]} 41. Ne2 {[%clk 0:02:54]} 41... Kf8 {[%clk 0:11:36]} 42. Bxa4
{[%clk 0:02:59]} 42... Qa1+ {[%clk 0:11:44]} 43. Kf2 {[%clk 0:03:19]} 43... Qf6+
{[%clk 0:11:59]} 44. Kg1 {[%clk 0:03:03]} 44... Nf3+ {[%clk 0:11:58]} 45. Kg2
{[%clk 0:03:15]} 45... Nd2 {[%clk 0:10:18]} 46. Qe3 {[%clk 0:02:16]} 46... Qf1+
{[%clk 0:10:41]} 47. Kh2 {[%clk 0:02:19]} 47... Nf3+ {[%clk 0:09:41]} 48. Kg3
{[%clk 0:02:21]} 48... Nh4 {[%clk 0:10:02]} 49. Qf2+ {[%clk 0:01:04]} 49...
Qxf2+ {[%clk 0:10:26]} 50. Kxf2 {[%clk 0:01:30]} 50... Bxa4 {[%clk 0:10:48]} 51.
Nc3 {[%clk 0:01:54]} 51... Bb3 {[%clk 0:10:53]} 52. a4 {[%clk 0:02:09]} 52...
Ke7 {[%clk 0:11:07]} 53. Ke3 {[%clk 0:01:47]} 53... Bc4 {[%clk 0:11:25]} 54. Ke4
{[%clk 0:02:10]} 54... Ng6 {[%clk 0:11:32]} 55. a5 {[%clk 0:02:18]} 55... Ne5
{[%clk 0:11:37]} 56. Nd1 {[%clk 0:02:31]} 56... c6 {[%clk 0:11:47]} 57. dxc6
{[%clk 0:02:56]} 57... Nxc6 {[%clk 0:12:10]} 58. Ne3 {[%clk 0:03:19]} 58... Nxa5
{[%clk 0:12:14]} 59. Nf5+ {[%clk 0:03:13]} 59... Ke6 {[%clk 0:12:38]} 60. Nxh6
{[%clk 0:03:38]} 60... d5+ {[%clk 0:12:53]} 61. Ke3 {[%clk 0:03:26]} 61... d4+
{[%clk 0:13:10]} 62. Kd2 {[%clk 0:03:54]} 62... Nb3+ {[%clk 0:13:35]} 63. Kd1
{[%clk 0:04:01]} 63... Bd3 {[%clk 0:14:02]} 64. Ng8 {[%clk 0:04:07]} 64... c4
{[%clk 0:14:27]} 65. Nh6 {[%clk 0:04:20]} 65... c3 {[%clk 0:14:51]} 0-1

[Variant "Standard"]
[Site "Europe Echecs"]

[Event "Championnat du monde jeunes U10"]
[Date "2024.11.17"]
[White "Mirzhanov, Arlan"]
[Black "Andre, Tomas"]
[WhiteElo "1721"]
[BlackElo "1928"]
[Round "3.13"]
[Result "1/2-1/2"]
[TimeControl "5400+30"]

1. e4 {[%clk 1:30:56]} 1... c5 {[%clk 1:30:38]} 2. Nf3 {[%clk 1:30:59]} 2... Nc6
{[%clk 1:30:53]} 3. d4 {[%clk 1:31:01]} 3... cxd4 {[%clk 1:31:21]} 4. Nxd4
{[%clk 1:31:27]} 4... e5 {[%clk 1:31:37]} 5. Nb5 {[%clk 1:31:51]} 5... d6 {[%clk
1:31:51]} 6. c4 {[%clk 1:29:50]} 6... Be6 {[%clk 1:30:59]} 7. N1c3 {[%clk
1:29:47]} 7... a6 {[%clk 1:31:05]} 8. Na3 {[%clk 1:30:13]} 8... Nf6 {[%clk
1:28:15]} 9. Bd3 {[%clk 1:24:20]} 9... Be7 {[%clk 1:24:17]} 10. O-O {[%clk
1:22:47]} 10... O-O {[%clk 1:24:27]} 11. Nc2 {[%clk 1:21:13]} 11... Rc8 {[%clk
1:23:23]} 12. Nd5 {[%clk 1:20:31]} 12... Nd7 {[%clk 1:18:39]} 13. b4 {[%clk
1:19:59]} 13... Bg5 {[%clk 1:13:26]} 14. Ba3 {[%clk 1:09:49]} 14... Bxd5 {[%clk
1:07:49]} 15. cxd5 {[%clk 1:01:50]} 15... Ne7 {[%clk 1:07:24]} 16. Bc1 {[%clk
1:01:15]} 16... Ng6 {[%clk 1:04:47]} 17. g3 {[%clk 0:56:46]} 17... Nb6 {[%clk
0:59:51]} 18. Qg4 {[%clk 0:54:34]} 18... Bxc1 {[%clk 0:59:13]} 19. Rfxc1 {[%clk
0:54:38]} 19... Rc3 {[%clk 0:57:53]} 20. Bf1 {[%clk 0:48:59]} 20... Qc7 {[%clk
0:57:24]} 21. Qd1 {[%clk 0:48:29]} 21... Rc8 {[%clk 0:55:37]} 22. Bh3 {[%clk
0:48:06]} 22... Nd7 {[%clk 0:53:33]} 23. Bxd7 {[%clk 0:48:08]} 23... Qxd7 {[%clk
0:53:50]} 24. Ne3 {[%clk 0:48:01]} 24... Qb5 {[%clk 0:46:30]} 25. a3 {[%clk
0:44:27]} 25... Ne7 {[%clk 0:36:13]} 26. Qd2 {[%clk 0:43:04]} 26... Rxc1+ {[%clk
0:34:52]} 27. Rxc1 {[%clk 0:43:31]} 27... Qd7 {[%clk 0:34:59]} 28. Rxc8+ {[%clk
0:41:30]} 28... Nxc8 {[%clk 0:33:32]} 29. Qc2 {[%clk 0:41:21]} 29... Ne7 {[%clk
0:31:22]} 30. a4 {[%clk 0:37:48]} 30... g6 {[%clk 0:31:31]} 31. g4 {[%clk
0:37:46]} 31... Kg7 {[%clk 0:28:54]} 32. f3 {[%clk 0:33:18]} 32... Qd8 {[%clk
0:22:52]} 33. a5 {[%clk 0:31:04]} 33... Nc8 {[%clk 0:17:45]} 34. Nc4 {[%clk
0:29:51]} 34... Na7 {[%clk 0:14:23]} 35. Qf2 {[%clk 0:18:18]} 35... Nb5 {[%clk
0:13:17]} 36. f4 {[%clk 0:12:57]} 36... Qc7 {[%clk 0:11:26]} 37. fxe5 {[%clk
0:12:01]} 37... Qxc4 {[%clk 0:09:10]} 1/2-1/2

[Variant "Standard"]
[Site "Europe Echecs"]

[Event "Championnat du monde jeunes U10"]
[Date "2024.11.17"]
[White "Larion, Iustin"]
[Black "Burba, Mikita"]
[WhiteElo "1925"]
[BlackElo "1528"]
[Round "3.14"]
[Result "1/2-1/2"]
[TimeControl "5400+30"]

1. e4 {[%clk 1:30:32]} 1... c5 {[%clk 1:30:52]} 2. c3 {[%clk 1:30:56]} 2... d5
{[%clk 1:31:16]} 3. exd5 {[%clk 1:31:18]} 3... Qxd5 {[%clk 1:31:38]} 4. d4
{[%clk 1:31:39]} 4... Nf6 {[%clk 1:30:59]} 5. Nf3 {[%clk 1:31:06]} 5... Bg4
{[%clk 1:29:11]} 6. Be2 {[%clk 1:31:21]} 6... e6 {[%clk 1:28:17]} 7. Be3 {[%clk
1:27:30]} 7... cxd4 {[%clk 1:25:30]} 8. cxd4 {[%clk 1:27:03]} 8... Be7 {[%clk
1:24:06]} 9. Nc3 {[%clk 1:26:58]} 9... Qd8 {[%clk 1:17:22]} 10. Qb3 {[%clk
1:23:15]} 10... Qc8 {[%clk 1:04:37]} 11. Rc1 {[%clk 1:15:47]} 11... O-O {[%clk
0:54:30]} 12. O-O {[%clk 1:01:18]} 12... Bd6 {[%clk 0:41:47]} 13. Nb5 {[%clk
0:51:34]} 13... Qd8 {[%clk 0:40:16]} 14. Nxd6 {[%clk 0:49:53]} 14... Qxd6 {[%clk
0:40:29]} 15. h3 {[%clk 0:46:20]} 15... Bh5 {[%clk 0:38:23]} 16. Qxb7 {[%clk
0:43:36]} 16... Nbd7 {[%clk 0:37:52]} 17. Qa6 {[%clk 0:41:54]} 17... Qb4 {[%clk
0:29:01]} 18. Ne5 {[%clk 0:33:45]} 18... Bxe2 {[%clk 0:26:18]} 19. Qxe2 {[%clk
0:34:13]} 19... Nb6 {[%clk 0:24:18]} 20. a3 {[%clk 0:29:29]} 20... Qe7 {[%clk
0:22:41]} 21. b4 {[%clk 0:27:32]} 21... Nbd5 {[%clk 0:22:21]} 22. Bg5 {[%clk
0:25:26]} 22... h6 {[%clk 0:19:21]} 23. Bh4 {[%clk 0:24:34]} 23... Qb7 {[%clk
0:13:18]} 24. Qf3 {[%clk 0:23:52]} 24... Qb6 {[%clk 0:11:14]} 25. Rc5 {[%clk
0:21:39]} 25... Kh7 {[%clk 0:07:55]} 26. Rfc1 {[%clk 0:21:42]} 26... Kg8 {[%clk
0:06:56]} 27. Bxf6 {[%clk 0:17:09]} 27... Nxf6 {[%clk 0:07:12]} 28. Qc6 {[%clk
0:16:46]} 28... Rfd8 {[%clk 0:06:20]} 29. g3 {[%clk 0:14:12]} 29... Nd5 {[%clk
0:05:35]} 30. Rb5 {[%clk 0:14:06]} 30... Qxd4 {[%clk 0:05:27]} 31. Nf3 {[%clk
0:11:18]} 31... Qe4 {[%clk 0:04:31]} 32. Nd2 {[%clk 0:11:01]} 32... Qd3 {[%clk
0:04:44]} 33. Nf1 {[%clk 0:11:06]} 33... Qxa3 {[%clk 0:04:27]} 34. Re1 {[%clk
0:10:01]} 34... Qf3 {[%clk 0:04:14]} 35. Rc5 {[%clk 0:09:28]} 35... Qf6 {[%clk
0:04:01]} 36. b5 {[%clk 0:08:44]} 36... Qd4 {[%clk 0:03:11]} 37. Rcc1 {[%clk
0:08:24]} 37... Nb4 {[%clk 0:03:00]} 38. Qc4 {[%clk 0:07:52]} 38... Nd3 {[%clk
0:03:18]} 39. Qxd4 {[%clk 0:08:16]} 39... Rxd4 {[%clk 0:03:42]} 40. Red1 {[%clk
0:08:36]} 40... Rd5 {[%clk 0:03:29]} 41. Rc7 {[%clk 0:08:49]} 41... Nf4 {[%clk
0:03:06]} 42. Rxd5 {[%clk 0:09:05]} 42... Nxd5 {[%clk 0:03:30]} 43. Rb7 {[%clk
0:09:28]} 43... a5 {[%clk 0:02:09]} 44. bxa6 {[%clk 0:09:49]} 44... Rxa6 {[%clk
0:02:33]} 45. h4 {[%clk 0:09:42]} 45... g6 {[%clk 0:02:06]} 46. Rb3 {[%clk
0:10:01]} 46... Kg7 {[%clk 0:02:23]} 47. Ne3 {[%clk 0:10:18]} 47... Ne7 {[%clk
0:01:35]} 48. Rb7 {[%clk 0:10:28]} 48... Nc6 {[%clk 0:01:20]} 49. Kg2 {[%clk
0:10:31]} 49... h5 {[%clk 0:01:27]} 50. Rc7 {[%clk 0:10:36]} 50... Ne5 {[%clk
0:01:22]} 51. Rc5 {[%clk 0:10:01]} 51... Nd3 {[%clk 0:01:34]} 52. Rc3 {[%clk
0:10:18]} 52... Ne5 {[%clk 0:01:25]} 53. Rc5 {[%clk 0:10:23]} 53... Nd7 {[%clk
0:01:05]} 54. Rb5 {[%clk 0:10:42]} 54... Kf6 {[%clk 0:00:54]} 55. Rb2 {[%clk
0:10:33]} 55... Rc6 {[%clk 0:01:02]} 56. Ra2 {[%clk 0:10:52]} 56... Ke5 {[%clk
0:00:58]} 57. Ra7 {[%clk 0:11:08]} 57... Kd6 {[%clk 0:01:05]} 58. Ra8 {[%clk
0:11:13]} 58... Rc7 {[%clk 0:01:03]} 59. Ra6+ {[%clk 0:11:38]} 59... Ke5 {[%clk
0:01:13]} 60. Ra5+ {[%clk 0:11:30]} 60... Nc5 {[%clk 0:01:04]} 61. Ra2 {[%clk
0:09:50]} 61... f6 {[%clk 0:01:03]} 62. Ra8 {[%clk 0:09:11]} 62... Rg7 {[%clk
0:00:53]} 1/2-1/2

[Variant "Standard"]
[Site "Europe Echecs"]

[Event "Championnat du monde jeunes U10"]
[Date "2024.11.17"]
[White "Kostyukovich, Ivan"]
[Black "Nguyen Quang Anh"]
[WhiteElo "1489"]
[BlackElo "1889"]
[Round "3.15"]
[Result "1/2-1/2"]
[TimeControl "5400+30"]

1. d4 {[%clk 1:30:56]} 1... c5 {[%clk 1:30:37]} 2. d5 {[%clk 1:31:10]} 2... e6
{[%clk 1:30:07]} 3. c4 {[%clk 1:31:28]} 3... Nf6 {[%clk 1:30:04]} 4. Nc3 {[%clk
1:31:48]} 4... exd5 {[%clk 1:30:13]} 5. cxd5 {[%clk 1:32:12]} 5... d6 {[%clk
1:30:32]} 6. e4 {[%clk 1:32:35]} 6... g6 {[%clk 1:30:27]} 7. f4 {[%clk 1:31:43]}
7... Bg7 {[%clk 1:30:30]} 8. Bb5+ {[%clk 1:32:00]} 8... Nfd7 {[%clk 1:30:15]} 9.
a4 {[%clk 1:30:21]} 9... O-O {[%clk 1:29:46]} 10. Nf3 {[%clk 1:30:06]} 10... Na6
{[%clk 1:29:22]} 11. O-O {[%clk 1:27:45]} 11... Nc7 {[%clk 1:28:03]} 12. Re1
{[%clk 1:25:07]} 12... Nxb5 {[%clk 1:24:24]} 13. Nxb5 {[%clk 1:24:57]} 13... Nf6
{[%clk 1:20:41]} 14. Bd2 {[%clk 1:21:58]} 14... Re8 {[%clk 1:17:25]} 15. Qc2
{[%clk 1:15:14]} 15... Bg4 {[%clk 1:12:07]} 16. e5 {[%clk 1:11:17]} 16... dxe5
{[%clk 1:08:00]} 17. Nxe5 {[%clk 1:05:34]} 17... Bf5 {[%clk 1:01:49]} 18. Qxc5
{[%clk 1:03:01]} 18... Bf8 {[%clk 0:53:15]} 19. Qd4 {[%clk 0:53:20]} 19... Qxd5
{[%clk 0:50:10]} 20. Qxd5 {[%clk 0:49:36]} 20... Nxd5 {[%clk 0:50:30]} 21. Nc4
{[%clk 0:48:33]} 21... Bc5+ {[%clk 0:46:03]} 22. Kh1 {[%clk 0:48:34]} 22... Rad8
{[%clk 0:45:23]} 23. Rxe8+ {[%clk 0:48:04]} 23... Rxe8 {[%clk 0:42:43]} 24. Nbd6
{[%clk 0:48:03]} 24... Bxd6 {[%clk 0:42:50]} 25. Nxd6 {[%clk 0:47:46]} 25... Re2
{[%clk 0:42:52]} 26. Nxf5 {[%clk 0:42:35]} 26... Rxd2 {[%clk 0:41:05]} 27. Nh4
{[%clk 0:41:04]} 27... Rxb2 {[%clk 0:38:59]} 28. f5 {[%clk 0:40:59]} 28... Nc3
{[%clk 0:38:27]} 29. fxg6 {[%clk 0:39:46]} 29... fxg6 {[%clk 0:36:37]} 30. a5
{[%clk 0:37:42]} 30... Rb1+ {[%clk 0:31:50]} 31. Rxb1 {[%clk 0:38:08]} 31...
Nxb1 {[%clk 0:32:12]} 32. Nf3 {[%clk 0:38:20]} 32... Kf7 {[%clk 0:32:27]} 33.
Ng5+ {[%clk 0:38:12]} 33... Ke7 {[%clk 0:31:11]} 34. Nxh7 {[%clk 0:38:17]} 34...
Na3 {[%clk 0:31:34]} 35. Ng5 {[%clk 0:38:07]} 35... Nc4 {[%clk 0:31:57]} 36. Nf3
{[%clk 0:38:12]} 36... Nxa5 {[%clk 0:32:15]} 37. Ne5 {[%clk 0:38:16]} 37... Kf6
{[%clk 0:31:40]} 38. Nd7+ {[%clk 0:38:19]} 38... Ke6 {[%clk 0:31:14]} 39. Nc5+
{[%clk 0:38:33]} 39... Kd5 {[%clk 0:29:31]} 40. Nd3 {[%clk 0:37:57]} 40... b5
{[%clk 0:26:26]} 41. h4 {[%clk 0:37:17]} 41... Ke4 {[%clk 0:25:40]} 42. Nc5+
{[%clk 0:35:31]} 42... Kf5 {[%clk 0:25:01]} 43. Nd3 {[%clk 0:34:27]} 43... Kg4
{[%clk 0:21:49]} 44. Ne5+ {[%clk 0:34:42]} 44... Kxh4 {[%clk 0:21:59]} 45. Nxg6+
{[%clk 0:35:01]} 45... Kg5 {[%clk 0:22:23]} 46. Ne5 {[%clk 0:35:05]} 46... b4
{[%clk 0:22:27]} 47. Nd3 {[%clk 0:34:58]} 47... b3 {[%clk 0:22:41]} 48. Nb2
{[%clk 0:35:25]} 48... Nb7 {[%clk 0:14:18]} 49. Kg1 {[%clk 0:34:59]} 49... Nc5
{[%clk 0:14:09]} 50. Kf2 {[%clk 0:34:47]} 50... a5 {[%clk 0:14:08]} 51. Ke2
{[%clk 0:34:54]} 51... a4 {[%clk 0:14:03]} 52. Nc4 {[%clk 0:34:15]} 52... Kf4
{[%clk 0:04:48]} 53. Kd2 {[%clk 0:31:52]} 53... Ne4+ {[%clk 0:04:31]} 54. Kd3
{[%clk 0:31:43]} 54... Kf5 {[%clk 0:04:45]} 55. Na3 {[%clk 0:30:52]} 55... Ke5
{[%clk 0:04:25]} 56. Kc4 {[%clk 0:30:51]} 56... Kd6 {[%clk 0:04:30]} 57. Kb4
{[%clk 0:30:36]} 57... Nc5 {[%clk 0:04:51]} 58. g4 {[%clk 0:30:37]} 58... Kd5
{[%clk 0:05:03]} 59. g5 {[%clk 0:30:33]} 59... Ke5 1/2-1/2

[Variant "Standard"]
[Site "Europe Echecs"]

[Event "Championnat du monde jeunes U10"]
[Date "2024.11.17"]
[White "Llari, Marc"]
[Black "Guntaka, Aayansh"]
[WhiteElo "2201"]
[BlackElo "1798"]
[Round "3.16"]
[Result "1-0"]
[TimeControl "5400+30"]

1. d4 {[%clk 1:30:59]} 1... d5 {[%clk 1:30:54]} 2. c4 {[%clk 1:31:25]} 2... e6
{[%clk 1:31:17]} 3. Nc3 {[%clk 1:31:50]} 3... c6 {[%clk 1:31:42]} 4. e4 {[%clk
1:32:16]} 4... dxe4 {[%clk 1:32:05]} 5. Nxe4 {[%clk 1:32:43]} 5... Bb4+ {[%clk
1:32:27]} 6. Bd2 {[%clk 1:33:08]} 6... Qxd4 {[%clk 1:32:51]} 7. Bxb4 {[%clk
1:33:34]} 7... Qxe4+ {[%clk 1:33:14]} 8. Be2 {[%clk 1:33:59]} 8... a5 {[%clk
1:31:40]} 9. Bd6 {[%clk 1:32:20]} 9... Qxg2 {[%clk 1:07:06]} 10. Bf3 {[%clk
1:31:46]} 10... Qg5 {[%clk 1:06:41]} 11. Ne2 {[%clk 1:30:44]} 11... Qf6 {[%clk
1:06:22]} 12. Nc3 {[%clk 1:30:07]} 12... Qd8 {[%clk 0:56:09]} 13. Qd2 {[%clk
1:18:51]} 13... Ne7 {[%clk 0:51:31]} 14. O-O-O {[%clk 1:17:05]} 14... f6 {[%clk
0:43:18]} 15. Bh5+ {[%clk 1:13:59]} 15... g6 {[%clk 0:43:04]} 16. Qh6 {[%clk
1:12:58]} 16... Bd7 {[%clk 0:39:18]} 17. Qg7 {[%clk 1:09:50]} 17... Rg8 {[%clk
0:29:39]} 18. Qxh7 {[%clk 1:09:47]} 18... gxh5 {[%clk 0:24:37]} 19. Ne4 {[%clk
1:08:31]} 19... Rg6 {[%clk 0:17:24]} 20. Rhg1 {[%clk 1:08:31]} 20... f5 {[%clk
0:13:59]} 21. Rxg6 {[%clk 1:08:09]} 21... fxe4 {[%clk 0:14:10]} 22. Rg8+ {[%clk
1:08:29]} 22... Nxg8 {[%clk 0:14:35]} 23. Qg6# {[%clk 1:08:54]} 1-0

[Variant "Standard"]
[Site "Europe Echecs"]

[Event "Championnat du monde jeunes U10"]
[Date "2024.11.17"]
[White "Akramov, Khusan"]
[Black "Kolodziejczyk, Boris"]
[WhiteElo "1782"]
[BlackElo "2115"]
[Round "3.17"]
[Result "0-1"]
[TimeControl "5400+30"]

1. e4 {[%clk 1:30:55]} 1... c5 {[%clk 1:30:43]} 2. Nf3 {[%clk 1:31:22]} 2... Nc6
{[%clk 1:31:09]} 3. Bb5 {[%clk 1:31:49]} 3... g6 {[%clk 1:31:18]} 4. O-O {[%clk
1:32:12]} 4... Bg7 {[%clk 1:31:42]} 5. c3 {[%clk 1:30:54]} 5... Nf6 {[%clk
1:31:31]} 6. Re1 {[%clk 1:31:19]} 6... O-O {[%clk 1:31:45]} 7. d4 {[%clk
1:31:43]} 7... a6 {[%clk 1:31:11]} 8. Bf1 {[%clk 1:29:57]} 8... cxd4 {[%clk
1:31:08]} 9. cxd4 {[%clk 1:30:21]} 9... d5 {[%clk 1:31:16]} 10. e5 {[%clk
1:29:55]} 10... Ne4 {[%clk 1:31:40]} 11. h3 {[%clk 1:27:50]} 11... Qb6 {[%clk
1:21:04]} 12. Nc3 {[%clk 1:26:11]} 12... Rd8 {[%clk 1:18:20]} 13. Na4 {[%clk
1:03:30]} 13... Qc7 {[%clk 1:09:27]} 14. Bf4 {[%clk 1:01:48]} 14... b5 {[%clk
1:04:42]} 15. Nc3 {[%clk 1:01:44]} 15... Nxc3 {[%clk 1:03:18]} 16. bxc3 {[%clk
1:01:37]} 16... Na5 {[%clk 0:51:48]} 17. a4 {[%clk 0:55:42]} 17... Bd7 {[%clk
0:50:37]} 18. e6 {[%clk 0:48:33]} 18... Qxf4 {[%clk 0:50:23]} 19. exd7 {[%clk
0:48:53]} 19... Rxd7 {[%clk 0:48:27]} 20. axb5 {[%clk 0:49:14]} 20... axb5
{[%clk 0:48:45]} 21. Bxb5 {[%clk 0:49:37]} 21... Rda7 {[%clk 0:46:44]} 22. Ne5
{[%clk 0:46:17]} 22... Bxe5 {[%clk 0:41:01]} 23. Rxe5 {[%clk 0:41:32]} 23... e6
{[%clk 0:38:51]} 24. g3 {[%clk 0:35:05]} 24... Qf6 {[%clk 0:38:07]} 25. Re2
{[%clk 0:33:47]} 25... Qd8 {[%clk 0:34:14]} 26. Rea2 {[%clk 0:33:24]} 26... Qb6
{[%clk 0:33:25]} 27. Rb1 {[%clk 0:30:59]} 27... Qc7 {[%clk 0:32:21]} 28. Qd3
{[%clk 0:28:38]} 28... Nb7 {[%clk 0:30:02]} 29. Rxa7 {[%clk 0:28:13]} 29... Rxa7
{[%clk 0:30:30]} 30. c4 {[%clk 0:25:50]} 30... dxc4 {[%clk 0:30:18]} 31. Qxc4
{[%clk 0:25:32]} 31... Qxc4 {[%clk 0:30:04]} 32. Bxc4 {[%clk 0:25:55]} 32... Nd6
{[%clk 0:29:05]} 33. Be2 {[%clk 0:26:03]} 33... Ra4 {[%clk 0:26:16]} 34. Rd1
{[%clk 0:26:05]} 34... Nf5 {[%clk 0:25:23]} 35. d5 {[%clk 0:25:42]} 35... Nd4
{[%clk 0:25:03]} 36. d6 {[%clk 0:24:58]} 36... Nxe2+ {[%clk 0:24:46]} 37. Kf1
{[%clk 0:25:21]} 37... Nxg3+ {[%clk 0:24:59]} 38. fxg3 {[%clk 0:25:44]} 38...
Ra8 {[%clk 0:25:20]} 39. Ke2 {[%clk 0:26:05]} 39... Kf8 {[%clk 0:24:13]} 40. Ke3
{[%clk 0:26:23]} 40... Ke8 {[%clk 0:22:52]} 41. Kd4 {[%clk 0:26:18]} 41... Ra5
{[%clk 0:22:14]} 42. Kc4 {[%clk 0:26:16]} 42... Kd7 {[%clk 0:22:07]} 43. Rd3
{[%clk 0:26:32]} 43... Ra6 {[%clk 0:21:42]} 44. Kc5 {[%clk 0:26:57]} 44... Rc6+
{[%clk 0:22:04]} 45. Kb5 {[%clk 0:26:49]} 45... Rxd6 {[%clk 0:22:21]} 46. Ra3
{[%clk 0:26:53]} 46... e5 {[%clk 0:22:31]} 47. Kc5 {[%clk 0:27:13]} 47... Ke6
{[%clk 0:22:09]} 48. Ra1 {[%clk 0:26:21]} 48... Rd3 {[%clk 0:22:17]} 49. Rg1
{[%clk 0:26:39]} 49... f5 {[%clk 0:22:41]} 50. Kc4 {[%clk 0:26:57]} 50... Rf3
{[%clk 0:22:26]} 0-1

[Variant "Standard"]
[Site "Europe Echecs"]